bitfinex/quotes_BTCUSD_20230901
["timestamp","ask_amount","ask_price","bid_price","bid_amount"]
[1693590149399,0.78918571,25355.0,25353.0,0.41916]
[1693590149603,0.78918571,25355.0,25354.0,0.45384278]
[1693590149825,0.74323634,25355.0,25354.0,0.45384278]
[1693590150033,0.74323634,25355.0,25354.0,1.00224278]
[1693590150239,0.45657177,25355.0,25354.0,1.17398614]
[1693590150458,0.45657177,25355.0,25354.0,1.33394614]
[1693590150459,0.04524355,25355.0,25354.0,1.33394614]
[1693590150706,0.1557,25368.0,25354.0,1.33394614]
[1693590150707,0.12,25373.0,25357.0,0.9097]
[1693590150917,0.04,25371.0,25367.0,0.2484]
[1693590151124,0.1,25371.0,25367.0,0.2484]
[1693590151346,0.1,25371.0,25368.0,0.02484]
[1693590151558,0.12,25364.0,25360.0,0.2484]
[1693590151767,0.15483471,25363.0,25361.0,0.38708678]
[1693590152184,0.12,25364.0,25361.0,0.38708678]
[1693590152400,0.04104943,25362.0,25361.0,0.38708678]
[1693590152611,0.02,25368.0,25361.0,0.71451896]
[1693590152612,0.06,25367.0,25361.0,0.71451896]
[1693590152827,0.12,25369.0,25365.0,0.2484]
[1693590153044,0.12,25370.0,25366.0,0.38708678]
[1693590153246,0.08,25377.0,25366.0,0.38708678]
[1693590153247,0.002,25371.0,25369.0,0.38708678]
[1693590153449,0.002,25371.0,25370.0,0.38708678]
[1693590153656,0.12,25377.0,25370.0,0.38708678]
[1693590153657,0.08,25376.0,25370.0,0.82233546]
[1693590153870,0.08,25376.0,25375.0,0.2484]
[1693590154105,0.03999977,25379.0,25375.0,0.63548678]
[1693590154106,0.08,25379.0,25375.0,0.63548678]
[1693590154313,0.1,25376.0,25375.0,0.2484]
[1693590154520,4.03422,25380.0,25375.0,0.5484]
[1693590154739,4.03422,25380.0,25377.0,0.2484]
[1693590155390,0.03,25379.0,25377.0,0.2484]
[1693590155612,4.03422,25380.0,25378.0,0.68708678]
[1693590155834,4.03422,25380.0,25379.0,0.38708678]
[1693590156052,4.03422,25380.0,25379.0,0.91289946]
[1693590156053,4.03522,25380.0,25379.0,0.91289946]
[1693590156269,0.9856,25389.0,25379.0,1.75749014]
[1693590156523,0.1,25394.0,25388.0,0.2484]
[1693590156727,0.1,25392.0,25390.0,0.2484]
[1693590156934,0.1,25392.0,25391.0,0.13869624]
[1693590157140,0.1,25392.0,25391.0,0.38709624]
[1693590157565,0.1,25392.0,25389.0,0.2484]
[1693590157774,0.1,25388.0,25381.0,0.49892]
[1693590157980,0.15483471,25387.0,25383.0,0.2484]
[1693590158184,0.15483471,25387.0,25384.0,0.38708678]
[1693590158388,0.15483471,25387.0,25385.0,0.3]
[1693590158585,0.1,25388.0,25385.0,0.68708678]
[1693590158784,0.1,25388.0,25380.0,2.2214]
[1693590158785,0.1,25387.0,25380.0,2.2214]
[1693590158986,0.15483471,25386.0,25382.0,0.2484]
[1693590159196,0.1,25384.0,25383.0,0.037]
[1693590159784,0.08,25384.0,25383.0,0.037]
[1693590159986,0.1,25384.0,25383.0,0.42408678]
[1693590160219,0.1,25386.0,25383.0,0.42408678]
[1693590160424,0.62110059,25390.0,25383.0,0.004]
[1693590160425,0.004,25384.0,25383.0,0.004]
[1693590160621,0.004,25384.0,25383.0,0.2524]
[1693590160825,0.05011398,25385.0,25383.0,0.68708678]
[1693590161084,0.1,25386.0,25383.0,0.3]
[1693590161282,0.1,25386.0,25379.0,2.124835]
[1693590161283,0.1,25381.0,25379.0,2.124835]
[1693590161494,0.1,25381.0,25379.0,1.97]
[1693590161696,0.1,25381.0,25380.0,0.38708678]
[1693590162075,0.004,25384.0,25380.0,0.38708678]
[1693590162229,0.1,25383.0,25382.0,0.2484]
[1693590162433,0.024,25384.0,25382.0,0.63548678]
[1693590162434,0.004,25384.0,25382.0,0.63548678]
[1693590162659,0.001,25386.0,25384.0,0.2484]
[1693590162861,0.001,25386.0,25385.0,0.38708678]
[1693590163063,0.001,25386.0,25385.0,0.34938678]
[1693590163463,0.64110059,25390.0,25385.0,0.73884678]
[1693590163464,0.62110059,25390.0,25385.0,0.73884678]
[1693590163661,0.61064873,25390.0,25389.0,0.2484]
[1693590163865,0.67064873,25390.0,25389.0,0.63548678]
[1693590164138,0.67064873,25390.0,25389.0,0.38708678]
[1693590164139,0.65726523,25390.0,25389.0,0.38708678]
[1693590164335,0.65726523,25390.0,25389.0,0.93548678]
[1693590164467,0.02,25399.0,25392.0,0.2484]
[1693590164468,0.04,25399.0,25392.0,0.2484]
[1693590164672,0.08,25399.0,25398.0,0.2484]
[1693590164873,0.1,25402.0,25398.0,0.93548678]
[1693590165073,0.0194,25405.0,25399.0,0.68708678]
[1693590165074,0.09269399,25401.0,25399.0,0.68708678]
[1693590165273,0.09269399,25401.0,25397.0,0.2484]
[1693590165274,0.11269399,25401.0,25397.0,0.2484]
[1693590165467,0.07229999,25399.0,25397.0,0.63548678]
[1693590165671,0.07229999,25399.0,25398.0,0.38708678]
[1693590165867,0.09229999,25398.0,25397.0,0.2484]
[1693590166077,0.11229999,25398.0,25397.0,0.2484]
[1693590166278,0.03999977,25401.0,25397.0,0.63548678]
[1693590166279,0.09229999,25399.0,25397.0,0.63548678]
[1693590166595,0.09229999,25399.0,25398.0,0.63548678]
[1693590166805,0.09629999,25399.0,25398.0,0.66548678]
[1693590167000,0.09229999,25399.0,25398.0,0.63548678]
[1693590167432,0.004,25399.0,25398.0,0.63548678]
[1693590167630,0.09229999,25401.0,25398.0,0.67248678]
[1693590167843,0.38209999,25405.0,25401.0,0.2484]
[1693590167997,0.38209999,25405.0,25404.0,0.2484]
[1693590167998,0.11169999,25405.0,25404.0,0.2484]
[1693590168203,0.11169999,25405.0,25404.0,0.63548678]
[1693590168600,0.11169999,25405.0,25398.0,0.07648337]
[1693590168601,0.07229999,25403.0,25401.0,0.10422435]
[1693590168805,0.07229999,25403.0,25398.0,0.03]
[1693590168806,0.09229999,25400.0,25399.0,0.2484]
[1693590169003,0.09229999,25400.0,25399.0,0.93548678]
[1693590169480,0.0194,25405.0,25401.0,0.00770001]
[1693590169688,0.0194,25405.0,25404.0,0.2494]
[1693590169689,0.0244,25405.0,25404.0,0.2494]
[1693590169888,0.0194,25405.0,25404.0,0.93548678]
[1693590170464,0.0194,25405.0,25404.0,1.02422678]
[1693590170662,0.0194,25405.0,25404.0,0.93548678]
[1693590170864,0.0194,25405.0,25404.0,1.06536678]
[1693590171070,0.0393,25410.0,25404.0,1.29386679]
[1693590171071,0.0193,25410.0,25404.0,1.29386679]
[1693590171270,0.0193,25410.0,25409.0,0.63548678]
[1693590171500,0.0193,25410.0,25409.0,0.93548678]
[1693590171717,0.0193,25410.0,25409.0,1.29513015]
[1693590171922,0.0193,25410.0,25409.0,0.80660678]
[1693590172123,0.0193,25410.0,25409.0,0.47938678]
[1693590173660,0.0223,25410.0,25409.0,0.51638678]
[1693590173862,0.3094347,25410.0,25409.0,0.074]
[1693590174137,0.3094347,25410.0,25405.0,1.97]
[1693590174138,0.09229999,25406.0,25405.0,1.97]
[1693590174320,0.17020368,25407.0,25405.0,2.35708678]
[1693590174553,0.17020368,25407.0,25406.0,0.38708678]
[1693590175306,0.17020368,25407.0,25406.0,0.54451378]
[1693590175509,0.10451219,25407.0,25406.0,0.63769378]
[1693590175753,0.10451219,25407.0,25406.0,0.93763378]
[1693590175970,0.0233,25410.0,25409.0,0.026]
[1693590176094,0.0233,25410.0,25409.0,0.66148678]
[1693590176294,0.0193,25410.0,25409.0,0.63548678]
[1693590176900,0.0393,25410.0,25409.0,0.63548678]
[1693590177098,0.0393,25410.0,25409.0,0.41408678]
[1693590177099,0.0233,25410.0,25409.0,0.41408678]
[1693590177349,0.0193,25412.0,25410.0,0.00770001]
[1693590177551,0.25,25421.0,25415.0,0.00770001]
[1693590177751,0.11229999,25420.0,25419.0,0.38708678]
[1693590178405,0.0193,25425.0,25419.0,0.63548678]
[1693590178617,0.0193,25425.0,25424.0,0.38708678]
[1693590178832,0.0193,25425.0,25424.0,1.18388678]
[1693590179037,0.0193,25425.0,25424.0,1.08991131]
[1693590179216,0.0193,25425.0,25424.0,1.24722531]
[1693590179453,0.0193,25425.0,25424.0,1.32042531]
[1693590179654,0.0193,25425.0,25424.0,1.32810531]
[1693590179830,0.0223,25425.0,25424.0,1.37200531]
[1693590180037,0.0223,25425.0,25424.0,1.37974531]
[1693590180236,0.0223,25425.0,25424.0,1.80280532]
[1693590180452,0.0223,25425.0,25424.0,0.82980078]
[1693590180654,0.0223,25425.0,25424.0,1.53660078]
[1693590180868,0.0223,25425.0,25424.0,1.54368078]
[1693590181072,0.0223,25425.0,25424.0,1.52478078]
[1693590181402,0.0193,25431.0,25426.0,0.00770001]
[1693590181629,0.0193,25431.0,25430.0,0.38708678]
[1693590181842,0.0193,25431.0,25430.0,0.63548678]
[1693590182047,0.0143,25431.0,25430.0,0.93548678]
[1693590182257,0.10659999,25431.0,25430.0,0.38708678]
[1693590182472,0.12759999,25431.0,25430.0,0.38708678]
[1693590182683,0.1770209,25431.0,25430.0,0.38708678]
[1693590183226,0.1760209,25431.0,25430.0,0.42408678]
[1693590183432,0.1570209,25431.0,25430.0,0.46108678]
[1693590183636,0.10659999,25431.0,25430.0,0.38708678]
[1693590183839,0.10659999,25431.0,25430.0,0.42208678]
[1693590184038,0.17702127,25431.0,25430.0,0.066]
[1693590184482,0.17702127,25431.0,25430.0,0.45308678]
[1693590184736,0.15702127,25431.0,25430.0,0.45308678]
[1693590184932,0.17702127,25431.0,25430.0,0.45308678]
[1693590185134,0.17702127,25431.0,25430.0,0.41808678]
[1693590185342,0.17602127,25431.0,25430.0,0.38708678]
[1693590185560,0.17602127,25431.0,25430.0,0.46108678]
[1693590185761,0.17702127,25431.0,25430.0,0.46108678]
[1693590188678,0.06472128,25431.0,25430.0,0.96696678]
[1693590188872,0.0193,25432.0,25430.0,1.61488678]
[1693590189140,0.0193,25432.0,25431.0,1.11678678]
[1693590189418,0.11159999,25432.0,25431.0,0.4820487]
[1693590189547,0.13159999,25432.0,25431.0,0.38708678]
[1693590189965,0.17620079,25432.0,25431.0,0.38708678]
[1693590190178,0.17620079,25432.0,25431.0,0.42408678]
[1693590190179,0.0639008,25432.0,25431.0,0.42408678]
[1693590190389,0.13620079,25432.0,25431.0,0.50904678]
[1693590190600,0.13620079,25432.0,25431.0,0.49062678]
[1693590190802,0.09159999,25432.0,25431.0,0.49146678]
[1693590191009,0.09159999,25432.0,25431.0,0.42408678]
[1693590191218,0.13159999,25432.0,25431.0,0.72408678]
[1693590191433,0.13159999,25432.0,25431.0,0.76108678]
[1693590191872,0.0161973,25438.0,25433.0,0.02]
[1693590192087,0.0161973,25438.0,25434.0,0.38708678]
[1693590193227,0.0161973,25438.0,25434.0,0.40308678]
[1693590193913,0.2895,25439.0,25436.0,0.02]
[1693590193914,0.2695,25439.0,25436.0,0.02]
[1693590194113,0.2695,25439.0,25437.0,0.38708678]
[1693590195165,0.2695,25439.0,25438.0,0.02]
[1693590195304,0.2725,25439.0,25438.0,0.40708678]
[1693590195511,0.2755,25439.0,25438.0,0.40708678]
[1693590195703,0.31118431,25439.0,25438.0,0.40708678]
[1693590196105,0.31118431,25439.0,25438.0,0.47088948]
[1693590196106,0.03568431,25439.0,25438.0,0.47088948]
[1693590196310,0.03568431,25439.0,25438.0,0.77088948]
[1693590196537,0.03568431,25439.0,25438.0,0.78688948]
[1693590196738,0.0194,25441.0,25440.0,0.0838027]
[1693590196986,0.0194,25441.0,25440.0,0.47088948]
[1693590197166,0.0194,25441.0,25440.0,0.77088948]
[1693590198163,0.0194,25441.0,25440.0,0.80788948]
[1693590198440,0.0194,25441.0,25440.0,0.96510548]
[1693590198649,0.0194,25441.0,25440.0,0.98510548]
[1693590198856,0.0194,25441.0,25440.0,1.02210548]
[1693590200288,0.0194,25441.0,25440.0,1.95775548]
[1693590200492,0.0194,25441.0,25440.0,2.32379548]
[1693590200698,0.0194,25441.0,25440.0,1.68853548]
[1693590200904,0.0194,25441.0,25440.0,1.56805548]
[1693590201110,0.17423471,25441.0,25440.0,1.21856652]
[1693590201318,0.17423471,25441.0,25440.0,0.62053678]
[1693590201319,0.0194,25441.0,25440.0,0.62053678]
[1693590201528,0.0194,25441.0,25440.0,0.64733948]
[1693590201741,0.0194,25441.0,25440.0,0.68433948]
[1693590201742,0.0456041,25441.0,25440.0,0.68433948]
[1693590201956,0.0194,25441.0,25440.0,0.72133948]
[1693590202163,0.19043201,25441.0,25440.0,0.19645]
[1693590202372,0.0355973,25441.0,25440.0,0.23445]
[1693590202584,0.0194,25441.0,25440.0,0.23445]
[1693590202797,0.04411112,25441.0,25440.0,1.49263948]
[1693590203008,0.04411112,25441.0,25440.0,1.07183948]
[1693590203425,0.01793,25441.0,25440.0,0.65853678]
[1693590203638,0.01793,25441.0,25440.0,0.46208678]
[1693590203848,0.01793,25441.0,25440.0,0.45708678]
[1693590204067,0.01793,25441.0,25440.0,0.42008678]
[1693590204068,0.04151783,25441.0,25440.0,0.42008678]
[1693590204284,0.19635254,25441.0,25440.0,0.038]
[1693590204491,0.19635254,25441.0,25440.0,0.075]
[1693590204492,0.07771513,25441.0,25440.0,0.075]
[1693590204742,0.07771513,25441.0,25440.0,0.037]
[1693590204981,0.07771513,25441.0,25433.0,0.1038027]
[1693590204982,0.0161973,25438.0,25433.0,0.1038027]
[1693590205187,0.15483471,25437.0,25434.0,0.38708678]
[1693590205396,0.15483471,25437.0,25435.0,0.103803]
[1693590205619,0.02346917,25437.0,25435.0,0.49088978]
[1693590205854,0.02346917,25437.0,25432.0,0.1038027]
[1693590205855,0.17830388,25437.0,25432.0,0.1038027]
[1693590206059,0.15483471,25436.0,25433.0,0.38708678]
[1693590206269,0.02346917,25437.0,25433.0,0.49088948]
[1693590206681,0.02346917,25437.0,25435.0,0.003]
[1693590206886,0.03966647,25437.0,25435.0,0.003]
[1693590207103,0.0161973,25436.0,25435.0,0.003]
[1693590207520,0.0161973,25436.0,25435.0,0.012]
[1693590207946,0.0161973,25436.0,25435.0,0.009]
[1693590208160,0.0161973,25436.0,25433.0,0.029]
[1693590208381,0.0161973,25436.0,25435.0,0.009]
[1693590208787,0.0161973,25436.0,25435.0,0.012]
[1693590209004,0.0161973,25436.0,25432.0,0.19]
[1693590209418,0.0161973,25436.0,25433.0,0.029]
[1693590209666,0.0161973,25436.0,25432.0,0.19]
[1693590209877,0.0161973,25436.0,25435.0,0.003]
[1693590210297,0.02346917,25437.0,25435.0,0.003]
[1693590210505,0.0161973,25436.0,25435.0,0.003]
[1693590211545,0.0161973,25436.0,25435.0,0.009]
[1693590212411,0.02346917,25437.0,25435.0,0.012]
[1693590212622,0.02346917,25437.0,25436.0,0.38708678]
[1693590212844,0.02335917,25437.0,25436.0,0.81088948]
[1693590213057,0.02335917,25437.0,25436.0,1.35622948]
[1693590213258,0.01793,25441.0,25440.0,0.0838027]
[1693590213481,0.01793,25441.0,25437.0,0.02]
[1693590213692,0.01793,25441.0,25440.0,0.38708678]
[1693590214102,0.24932527,25444.0,25440.0,0.38708678]
[1693590214316,0.24932527,25444.0,25441.0,0.38708678]
[1693590214523,0.24932527,25444.0,25442.0,0.32]
[1693590214748,0.00099797,25444.0,25443.0,0.38708678]
[1693590214954,0.0194,25446.0,25443.0,0.38708678]
[1693590216026,0.0194,25446.0,25445.0,0.1]
[1693590216224,0.0194,25446.0,25445.0,0.48708678]
[1693590216439,0.0194,25446.0,25445.0,0.78708678]
[1693590216648,0.0194,25446.0,25445.0,0.72708678]
[1693590216850,0.0194,25446.0,25445.0,0.78708678]
[1693590217310,0.58132149,25446.0,25443.0,0.038]
[1693590217517,0.2676,25444.0,25443.0,0.038]
[1693590217732,0.2676,25444.0,25442.0,0.9]
[1693590217733,0.02,25443.0,25442.0,0.9]
[1693590218261,0.02,25434.0,25430.0,0.0001]
[1693590218472,0.56,25439.0,25430.0,0.0001]
[1693590218473,0.02,25432.0,25430.0,0.0001]
[1693590218668,0.15483471,25431.0,25430.0,0.0001]
[1693590219287,0.02,25432.0,25430.0,0.0001]
[1693590219716,0.02,25432.0,25430.0,0.0371]
[1693590219717,0.02,25431.0,25430.0,0.0371]
[1693590219944,0.02,25431.0,25430.0,0.0001]
[1693590220146,0.02,25431.0,25430.0,0.0371]
[1693590220147,0.023,25431.0,25430.0,0.0371]
[1693590220350,0.04595467,25431.0,25430.0,0.0371]
[1693590220754,0.04895467,25431.0,25430.0,0.0401]
[1693590221153,1.18547245,25431.0,25430.0,0.0401]
[1693590221448,1.81762345,25431.0,25430.0,0.0031]
[1693590221641,5.97806345,25431.0,25430.0,0.0031]
[1693590221779,4.01746345,25431.0,25430.0,0.0061]
[1693590221980,5.21043568,25431.0,25430.0,0.0061]
[1693590222180,0.02,25423.0,25420.0,0.0001]
[1693590222384,0.15483471,25422.0,25420.0,0.0001]
[1693590223163,0.2476,25426.0,25420.0,0.38718678]
[1693590223367,0.005,25423.0,25420.0,0.38718678]
[1693590223602,0.005,25423.0,25422.0,0.06]
[1693590224014,0.005,25423.0,25422.0,0.50708678]
[1693590224595,0.002,25423.0,25422.0,0.50708678]
[1693590224872,0.002,25423.0,25422.0,0.80708678]
[1693590225466,0.002,25423.0,25422.0,0.82708678]
[1693590225665,0.02,25431.0,25426.0,0.08]
[1693590225869,0.02,25431.0,25426.0,0.38708678]
[1693590226101,0.02316998,25430.0,25426.0,0.46708678]
[1693590227195,0.02316998,25430.0,25426.0,0.50408678]
[1693590227584,0.02316998,25430.0,25426.0,0.46708678]
[1693590227954,0.02316998,25430.0,25429.0,0.08]
[1693590228152,0.02316998,25430.0,25429.0,0.50708678]
[1693590228541,0.02316998,25430.0,25429.0,0.82708678]
[1693590228542,0.0003838,25430.0,25429.0,0.82708678]
[1693590228665,0.0013838,25430.0,25429.0,0.82708678]
[1693590228874,0.0003838,25430.0,25429.0,0.82708678]
[1693590229102,0.02,25440.0,25435.0,0.08]
[1693590229686,0.02281479,25439.0,25435.0,0.08]
[1693590229896,0.02281479,25439.0,25436.0,0.38708678]
[1693590230940,0.02281479,25439.0,25435.0,0.082]
[1693590231189,0.02281479,25439.0,25435.0,0.002]
[1693590231190,0.02,25438.0,25435.0,0.002]
[1693590231367,0.17483471,25438.0,25435.0,0.005]
[1693590231608,0.17483471,25438.0,25435.0,0.002]
[1693590231609,0.02,25437.0,25435.0,0.002]
[1693590231992,0.02,25437.0,25436.0,0.003]
[1693590232224,0.02,25437.0,25435.0,0.002]
[1693590232457,0.02,25437.0,25433.0,0.08]
[1693590232661,0.17483471,25437.0,25435.0,0.001]
[1693590232867,0.02,25437.0,25436.0,0.002]
[1693590233290,0.02,25437.0,25432.0,0.08]
[1693590233499,0.17483471,25437.0,25432.0,0.08]
[1693590233704,0.45404678,25438.0,25433.0,0.021]
[1693590233705,0.56192149,25436.0,25433.0,0.021]
[1693590233921,0.2476,25434.0,25433.0,0.021]
[1693590234146,0.2476,25434.0,25428.0,0.06]
[1693590234357,0.2476,25434.0,25432.0,0.034]
[1693590234358,0.17483471,25433.0,25432.0,0.034]
[1693590234583,0.02,25433.0,25432.0,0.034]
[1693590234791,0.2476,25434.0,25432.0,0.034]
[1693590235027,0.02,25435.0,25432.0,0.034]
[1693590235231,0.02,25435.0,25433.0,0.003]
[1693590235655,0.02242069,25434.0,25432.0,0.034]
[1693590235875,0.001,25433.0,25432.0,0.016]
[1693590236074,0.02242069,25434.0,25429.0,0.08]
[1693590236195,0.1772554,25434.0,25433.0,0.021]
[1693590236395,0.02242069,25434.0,25433.0,0.021]
[1693590236594,0.02242069,25434.0,25431.0,0.08]
[1693590236864,0.02242069,25434.0,25433.0,0.08]
[1693590237187,0.00099844,25438.0,25437.0,0.08]
[1693590237788,0.02,25442.0,25438.0,0.06]
[1693590238401,0.02244609,25441.0,25438.0,0.06]
[1693590238550,0.02244609,25441.0,25438.0,0.25]
[1693590239330,0.02244609,25441.0,25438.0,0.253]
[1693590240113,0.02744609,25441.0,25438.0,0.256]
[1693590240327,0.02744609,25441.0,25440.0,0.06]
[1693590240734,0.02744609,25441.0,25440.0,0.02]
[1693590240934,0.43353287,25441.0,25439.0,0.02]
[1693590241169,0.43353287,25441.0,25440.0,0.02]
[1693590241341,0.41453287,25441.0,25440.0,0.02]
[1693590241554,0.43453287,25441.0,25440.0,0.023]
[1693590241964,0.43453287,25441.0,25438.0,0.193]
[1693590241965,0.41453287,25441.0,25438.0,0.193]
[1693590242164,0.02,25439.0,25438.0,0.19]
[1693590242396,0.02,25436.0,25433.0,0.02]
[1693590242588,0.2476,25434.0,25433.0,0.02]
[1693590242786,0.40243471,25434.0,25433.0,0.02]
[1693590242912,0.2476,25434.0,25433.0,0.02]
[1693590243995,0.009,25434.0,25433.0,0.02]
[1693590244324,0.2476,25437.0,25433.0,0.02]
[1693590244325,0.24616827,25437.0,25433.0,0.02]
[1693590244538,0.24616827,25437.0,25429.0,0.08]
[1693590244539,0.10998802,25434.0,25429.0,0.08]
[1693590244733,0.10998802,25434.0,25426.0,0.157312]
[1693590244734,0.2476,25429.0,25426.0,0.06606395]
[1693590244908,0.2476,25427.0,25426.0,0.06606395]
[1693590245134,0.40243471,25427.0,25423.0,0.06606395]
[1693590245351,0.15483471,25426.0,25425.0,0.06606395]
[1693590245568,0.02,25428.0,25425.0,0.06606395]
[1693590245770,0.54192149,25428.0,25425.0,0.06606395]
[1693590245992,0.2476,25427.0,25425.0,0.06606395]
[1693590246820,0.00098055,25429.0,25426.0,0.02]
[1693590247174,0.04238942,25432.0,25427.0,0.06606395]
[1693590247381,0.04337755,25432.0,25431.0,0.06606395]
[1693590247821,0.04337755,25432.0,25425.0,0.048]
[1693590247822,0.4294762,25432.0,25428.0,0.06606395]
[1693590247978,0.2476,25429.0,25428.0,0.06606395]
[1693590248172,0.2476,25429.0,25426.0,0.06606395]
[1693590248173,0.63468678,25429.0,25426.0,0.06606395]
[1693590248374,0.78952149,25429.0,25426.0,0.06606395]
[1693590248600,0.87100149,25429.0,25425.0,0.06606395]
[1693590248815,0.2476,25426.0,25424.0,0.06606395]
[1693590249053,0.39243471,25426.0,25424.0,0.06606395]
[1693590249473,0.39243471,25426.0,25423.0,0.06606395]
[1693590249474,0.2576,25426.0,25423.0,0.06606395]
[1693590249667,0.2576,25426.0,25420.0,0.0001]
[1693590249668,0.40708678,25425.0,25424.0,0.19]
[1693590249873,0.73412678,25425.0,25424.0,0.19]
[1693590250023,0.73346678,25425.0,25424.0,0.19]
[1693590250265,0.65468678,25425.0,25424.0,0.199]
[1693590250684,0.75640673,25425.0,25424.0,0.198]
[1693590250904,0.75058673,25425.0,25424.0,0.198]
[1693590251109,0.67744673,25425.0,25424.0,0.198]
[1693590251306,0.29035995,25425.0,25424.0,0.198]
[1693590251988,0.29035995,25425.0,25424.0,0.193]
[1693590251989,0.30935995,25425.0,25424.0,0.193]
[1693590252215,0.67744673,25425.0,25424.0,0.19]
[1693590252370,0.69444673,25425.0,25424.0,0.193]
[1693590252572,0.71344673,25425.0,25424.0,0.196]
[1693590252770,0.28935995,25425.0,25424.0,0.193]
[1693590252982,0.04175995,25425.0,25424.0,0.25906395]
[1693590253186,0.07875995,25425.0,25424.0,0.26206395]
[1693590253590,0.07875995,25425.0,25424.0,0.196]
[1693590253591,0.32635995,25425.0,25424.0,0.196]
[1693590254675,0.71344673,25425.0,25424.0,0.196]
[1693590254878,0.80080673,25425.0,25424.0,0.196]
[1693590255123,0.80062673,25425.0,25424.0,0.196]
[1693590255323,0.79180673,25425.0,25424.0,0.196]
[1693590255651,0.71344673,25425.0,25424.0,0.196]
[1693590257685,0.41869995,25425.0,25424.0,0.196]
[1693590257886,0.07875995,25425.0,25424.0,0.196]
[1693590258237,0.32635995,25425.0,25424.0,0.196]
[1693590259574,0.32635995,25425.0,25424.0,0.26206395]
[1693590259929,0.07875995,25425.0,25424.0,0.26206395]
[1693590264495,0.07875995,25425.0,25424.0,0.64915073]
[1693590264704,0.07875995,25425.0,25424.0,0.82915073]
[1693590264912,0.00098251,25430.0,25429.0,0.06606395]
[1693590265151,0.00098251,25430.0,25429.0,0.93315073]
[1693590265354,0.2476,25438.0,25437.0,0.06606395]
[1693590265573,0.24859902,25438.0,25437.0,0.06606395]
[1693590265776,0.2476,25438.0,25437.0,0.06606395]
[1693590266854,0.2476,25438.0,25437.0,0.003]
[1693590267057,0.63468678,25438.0,25437.0,0.003]
[1693590267281,0.72534678,25438.0,25437.0,0.003]
[1693590267480,0.71640678,25438.0,25437.0,0.026]
[1693590267653,0.71610678,25438.0,25437.0,0.026]
[1693590267856,0.70590678,25438.0,25437.0,0.023]
[1693590268038,0.63468678,25438.0,25437.0,0.023]
[1693590268242,0.63468678,25438.0,25437.0,0.025]
[1693590268243,0.63768678,25438.0,25437.0,0.025]
[1693590270163,0.62768678,25438.0,25437.0,0.025]
[1693590270586,0.003,25438.0,25437.0,0.025]
[1693590270810,0.003,25438.0,25437.0,0.07106395]
[1693590271414,0.003,25438.0,25437.0,0.26106395]
[1693590272570,0.2276407,25441.0,25439.0,0.01275996]
[1693590272707,0.41678689,25440.0,25439.0,0.01275996]
[1693590273310,0.2476,25440.0,25439.0,0.01275996]
[1693590273833,0.41689002,25440.0,25439.0,0.01575996]
[1693590273999,0.41989002,25440.0,25439.0,0.01875996]
[1693590274196,0.41989002,25440.0,25439.0,0.01575996]
[1693590274560,0.42189002,25440.0,25439.0,0.01875996]
[1693590275554,0.8089768,25440.0,25439.0,0.01875996]
[1693590275757,0.8089768,25440.0,25439.0,0.01488103]
[1693590275758,0.97143308,25440.0,25439.0,0.01488103]
[1693590276015,0.97143308,25440.0,25437.0,0.19]
[1693590276016,1.84767508,25440.0,25437.0,0.19]
[1693590276220,0.2476,25438.0,25437.0,0.19]
[1693590276428,0.8039768,25438.0,25437.0,0.19]
[1693590276647,2.13711616,25438.0,25437.0,0.19]
[1693590276852,1.53826816,25438.0,25437.0,0.19]
[1693590277055,0.02,25437.0,25431.0,0.05882391]
[1693590277257,1.89066451,25436.0,25433.0,0.01275996]
[1693590277389,0.2476,25434.0,25433.0,0.01275996]
[1693590277593,0.63468678,25434.0,25433.0,0.01275996]
[1693590277796,0.63468678,25434.0,25433.0,0.05882391]
[1693590278399,0.066,25438.0,25433.0,0.05882391]
[1693590278716,0.029,25438.0,25437.0,0.05882391]
[1693590279116,0.2476,25440.0,25437.0,0.05882391]
[1693590279320,0.2476,25440.0,25439.0,0.05275996]
[1693590279548,0.4169245,25440.0,25439.0,0.05275996]
[1693590280375,0.3216,25440.0,25439.0,0.05275996]
[1693590280789,0.8409863,25440.0,25439.0,0.05275996]
[1693590280937,0.87976966,25440.0,25439.0,0.05275996]
[1693590281140,0.91676966,25440.0,25439.0,0.05575996]
[1693590281342,0.91676966,25440.0,25439.0,0.24575996]
[1693590281734,0.87976966,25440.0,25439.0,0.24575996]
[1693590281930,0.91676966,25440.0,25439.0,0.24875996]
[1693590282506,1.23420966,25440.0,25439.0,0.24875996]
[1693590282708,1.23042966,25440.0,25439.0,0.24875996]
[1693590282907,1.16436966,25440.0,25439.0,0.24875996]
[1693590283711,1.23222966,25440.0,25439.0,0.24875996]
[1693590284111,1.23204966,25440.0,25439.0,0.24875996]
[1693590284311,1.23150966,25440.0,25439.0,0.24875996]
[1693590284525,1.23186966,25440.0,25439.0,0.24875996]
[1693590284723,1.23174966,25440.0,25439.0,0.24875996]
[1693590284924,1.1255863,25440.0,25439.0,0.24875996]
[1693590285926,1.21666403,25440.0,25439.0,0.24875996]
[1693590286287,1.28782403,25440.0,25439.0,0.24875996]
[1693590286492,1.21666403,25440.0,25439.0,0.24875996]
[1693590287445,0.96906403,25440.0,25439.0,0.24875996]
[1693590287667,1.03830403,25440.0,25439.0,0.196]
[1693590287991,3.43164943,25440.0,25439.0,0.196]
[1693590288144,0.06,25438.0,25434.0,0.05882391]
[1693590288350,0.2476,25435.0,25432.0,0.05882391]
[1693590288573,0.54192149,25434.0,25430.0,0.05882391]
[1693590288776,0.54192149,25434.0,25432.0,0.05882391]
[1693590288777,0.63450149,25434.0,25432.0,0.05882391]
[1693590288948,0.07194,25433.0,25432.0,0.05882391]
[1693590289147,0.45650678,25433.0,25431.0,0.04606395]
[1693590289354,0.88228678,25432.0,25431.0,0.05882391]
[1693590290299,0.2476,25432.0,25431.0,0.05882391]
[1693590291749,0.2846,25432.0,25431.0,0.06182391]
[1693590291962,0.3206,25432.0,25431.0,0.06482391]
[1693590292550,0.3206,25432.0,25431.0,0.08482391]